bitfinex/quotes_BTCUSD_20251214
["timestamp","ask_amount","ask_price","bid_price","bid_amount"]
[1765728492624,0.01123431,89013.0,89010.0,0.00043]
[1765728492824,0.01123444,89012.0,89007.0,0.04917068]
[1765728493347,0.01123444,89012.0,89011.0,0.00019]
[1765728493862,0.01123444,89012.0,89011.0,0.00038]
[1765728494097,0.01123444,89012.0,89011.0,0.00502]
[1765728494449,0.01123444,89012.0,89005.0,0.23783517]
[1765728494679,0.01123444,89012.0,89007.0,0.22470067]
[1765728495101,0.01123444,89012.0,89011.0,0.0081]
[1765728495321,0.01123431,89013.0,89011.0,0.0081]
[1765728495478,0.23591793,89014.0,89012.0,0.00405]
[1765728495685,0.23591793,89014.0,89013.0,0.00405]
[1765728496291,0.01123418,89014.0,89013.0,0.00405]
[1765728496493,0.01123418,89014.0,89013.0,0.00784]
[1765728496896,0.01223418,89014.0,89013.0,0.00784]
[1765728498202,0.01223418,89014.0,89013.0,0.00884]
[1765728498203,0.01423418,89014.0,89013.0,0.00884]
[1765728500319,0.003,89014.0,89013.0,0.00884]
[1765728501768,0.003,89014.0,89013.0,0.01894701]
[1765728501968,0.003,89014.0,89013.0,0.13094701]
[1765728502443,0.003,89014.0,89013.0,0.12084]
[1765728502644,0.003,89014.0,89013.0,0.00884]
[1765728503017,0.003,89014.0,89013.0,0.12084]
[1765728503226,0.003,89014.0,89013.0,0.00884]
[1765728503552,0.22768375,89014.0,89013.0,0.00884]
[1765728503896,0.003,89014.0,89013.0,0.00884]
[1765728506835,0.003,89014.0,89013.0,0.04256493]
[1765728510214,0.003,89014.0,89013.0,0.15456493]
[1765728510821,0.003,89014.0,89013.0,0.04256493]
[1765728511008,0.003,89014.0,89013.0,0.15456493]
[1765728511876,0.001,89014.0,89013.0,0.15356493]
[1765728512255,0.01123267,89026.0,89013.0,0.15356493]
[1765728512256,0.01123267,89026.0,89022.0,0.01123317]
[1765728512805,0.01772,89029.0,89022.0,0.01123317]
[1765728512806,0.01123242,89028.0,89025.0,0.01123279]
[1765728513202,0.01123254,89027.0,89024.0,0.112]
[1765728513357,0.01123254,89027.0,89023.0,0.23589229]
[1765728513959,0.002,89026.0,89023.0,0.23589229]
[1765728514359,0.01123254,89027.0,89023.0,0.23589229]
[1765728514586,0.01423254,89027.0,89023.0,0.23689229]
[1765728514746,0.002,89026.0,89023.0,0.23689229]
[1765728514950,0.01423254,89027.0,89023.0,0.23689229]
[1765728515239,0.01123254,89027.0,89023.0,0.23589229]
[1765728515411,0.01623267,89026.0,89023.0,0.002]
[1765728515773,0.240888,89026.0,89023.0,0.002]
[1765728515971,0.22465829,89025.0,89023.0,0.002]
[1765728516197,0.22465829,89025.0,89023.0,0.001]
[1765728516480,0.22465829,89025.0,89020.0,0.25838874]
[1765728516662,0.22465829,89025.0,89022.0,0.01123317]
[1765728516866,0.22465829,89025.0,89023.0,0.001]
[1765728517336,0.01123229,89029.0,89026.0,0.01123267]
[1765728517717,0.002,89027.0,89025.0,0.22465368]
[1765728517884,0.01123229,89029.0,89025.0,0.23588647]
[1765728518691,0.01423229,89029.0,89026.0,0.001]
[1765728518892,0.01723229,89029.0,89026.0,0.002]
[1765728519119,0.01423229,89029.0,89026.0,0.001]
[1765728519500,0.01723229,89029.0,89026.0,0.001]
[1765728519662,0.01423229,89029.0,89025.0,0.23688647]
[1765728520085,0.01723229,89029.0,89025.0,0.23788647]
[1765728520464,0.01123242,89028.0,89025.0,0.01323279]
[1765728520662,0.01123242,89028.0,89025.0,0.01223279]
[1765728521082,0.23588268,89028.0,89026.0,0.001]
[1765728521263,0.23588528,89027.0,89023.0,0.23589367]
[1765728521692,0.23588528,89027.0,89025.0,0.002]
[1765728522000,0.23588528,89027.0,89025.0,0.001]
[1765728522163,0.23588528,89027.0,89026.0,0.001]
[1765728522551,0.23588528,89027.0,89025.0,0.001]
[1765728522806,0.23588528,89027.0,89024.0,0.02246584]
[1765728523163,0.23788528,89027.0,89024.0,0.02246584]
[1765728523591,0.01123242,89028.0,89025.0,0.01123279]
[1765728524109,0.003,89027.0,89025.0,0.01123279]
[1765728524407,0.003,89027.0,89025.0,0.01223279]
[1765728524785,0.01123254,89027.0,89025.0,0.001]
[1765728525001,0.23588525,89027.0,89025.0,0.002]
[1765728525394,0.23588525,89027.0,89025.0,0.001]
[1765728525578,0.23888525,89027.0,89025.0,0.002]
[1765728525822,0.23888525,89027.0,89025.0,0.001]
[1765728526170,0.24188525,89027.0,89025.0,0.002]
[1765728536514,0.112,89026.0,89025.0,0.002]
[1765728536877,0.24188525,89027.0,89025.0,0.002]
[1765728537482,0.15884,89026.0,89025.0,0.002]
[1765728537680,0.112,89026.0,89025.0,0.001]
[1765728537881,0.22465599,89025.0,89023.0,0.01123305]
[1765728539005,0.22665599,89025.0,89023.0,0.01223305]
[1765728539857,0.22865599,89025.0,89023.0,0.01323305]
[1765728541916,0.004,89025.0,89023.0,0.23789243]
[1765728547552,0.004,89025.0,89023.0,0.01323305]
[1765728547721,0.22865665,89025.0,89023.0,0.01323305]
[1765728547881,0.004,89025.0,89023.0,0.01323305]
[1765728553165,0.22865768,89025.0,89023.0,0.002]
[1765728553735,0.22865768,89025.0,89023.0,0.001]
[1765728553935,0.22466356,89022.0,89017.0,0.0112338]
[1765728554156,0.22466356,89022.0,89018.0,0.03372235]
[1765728554942,0.23590422,89020.0,89018.0,0.03372235]
[1765728555174,0.23590422,89020.0,89019.0,0.112]
[1765728555375,0.23590422,89020.0,89018.0,0.03372235]
[1765728555589,0.2246888,89012.0,89010.0,0.2907]
[1765728556277,0.2246888,89012.0,89011.0,0.03777387]
[1765728556829,0.2256888,89012.0,89011.0,0.03877387]
[1765728558662,0.2256888,89012.0,89011.0,0.00505]
[1765728563108,0.2246888,89012.0,89011.0,0.00405]
[1765728563518,0.2306888,89012.0,89011.0,0.00505]
[1765728568847,0.2306888,89012.0,89011.0,0.001]
[1765728570654,0.2607488,89012.0,89011.0,0.001]
[1765728570813,0.3043088,89012.0,89011.0,0.001]
[1765728571019,0.2607488,89012.0,89011.0,0.001]
[1765728571338,0.2306888,89012.0,89011.0,0.001]
[1765728574579,0.3727488,89012.0,89011.0,0.001]
[1765728574835,0.4163088,89012.0,89011.0,0.001]
[1765728576917,0.3043088,89012.0,89011.0,0.001]
[1765728577319,0.4163088,89012.0,89011.0,0.001]
[1765728582875,0.2306888,89012.0,89011.0,0.001]
[1765728583322,0.3043088,89012.0,89011.0,0.001]
[1765728584125,0.3604088,89012.0,89011.0,0.001]
[1765728584326,0.3043088,89012.0,89011.0,0.001]
[1765728587043,0.4163088,89012.0,89011.0,0.001]
[1765728587264,0.3043088,89012.0,89011.0,0.001]
[1765728587467,0.4163088,89012.0,89011.0,0.001]
[1765728592173,0.3604088,89012.0,89011.0,0.001]
[1765728592347,0.4163088,89012.0,89011.0,0.001]
[1765728593015,0.42080671,89012.0,89011.0,0.001]
[1765728593174,0.71150671,89012.0,89011.0,0.001]
[1765728593750,0.28080395,89006.0,89005.0,0.00024389]
[1765728593948,0.32858395,89006.0,89005.0,0.00024389]
[1765728594249,0.37214395,89006.0,89005.0,0.00024389]
[1765728595346,0.37414395,89006.0,89005.0,0.00024389]
[1765728595991,0.37614395,89006.0,89005.0,0.00124389]
[1765728597586,0.37414395,89006.0,89005.0,0.00124389]
[1765728598188,0.37814395,89006.0,89005.0,0.00124389]
[1765728598610,0.37614395,89006.0,89005.0,0.00024389]
[1765728599059,0.37914395,89006.0,89005.0,0.00124389]
[1765728601870,0.38364187,89006.0,89005.0,0.00124389]
[1765728603325,0.32754187,89006.0,89005.0,0.00124389]
[1765728603860,0.43954187,89006.0,89005.0,0.00124389]
[1765728605490,0.25392187,89006.0,89005.0,0.00124389]
[1765728605707,0.23620187,89006.0,89005.0,0.00124389]
[1765728605910,0.25392187,89006.0,89005.0,0.00124389]
[1765728607508,0.23620187,89006.0,89005.0,0.00124389]
[1765728607707,0.24942395,89006.0,89005.0,0.00124389]
[1765728607937,0.23170395,89006.0,89005.0,0.00124389]
[1765728609348,0.30358395,89006.0,89005.0,0.00124389]
[1765728610614,0.25964395,89006.0,89005.0,0.00124389]
[1765728611722,0.23170395,89006.0,89005.0,0.00124389]
[1765728631489,0.34370395,89006.0,89005.0,0.00124389]
[1765728632270,0.23170395,89006.0,89005.0,0.00124389]
[1765728635338,0.34370395,89006.0,89005.0,0.00124389]
[1765728635543,0.23170395,89006.0,89005.0,0.00124389]
[1765728638441,0.34370395,89006.0,89005.0,0.00124389]
[1765728638791,0.23170395,89006.0,89005.0,0.00124389]
[1765728648069,0.007,89006.0,89005.0,0.00124389]
[1765728648269,0.007,89006.0,89005.0,0.00574086]
[1765728648862,0.004,89006.0,89005.0,0.00474086]
[1765728649067,0.01772,89018.0,89014.0,0.01123418]
[1765728649267,0.22467265,89019.0,89014.0,0.01123418]
[1765728649268,0.01123355,89019.0,89015.0,0.01123406]
[1765728649488,0.01123343,89020.0,89017.0,0.0112338]
[1765728650027,0.01123343,89020.0,89016.0,0.23591251]
[1765728650231,0.2359015,89021.0,89016.0,0.23591251]
[1765728650232,0.0112333,89021.0,89018.0,0.01123368]
[1765728650371,0.01123343,89020.0,89016.0,0.01123393]
[1765728650574,0.01123343,89020.0,89015.0,0.04495861]
[1765728650575,0.23590802,89018.0,89015.0,0.03372455]
[1765728651034,0.23590802,89018.0,89017.0,0.001]
[1765728651391,0.23590802,89018.0,89015.0,0.03372455]
[1765728651592,0.22467855,89017.0,89015.0,0.03372455]
[1765728651777,0.01123393,89016.0,89015.0,0.001]
[1765728653209,0.01223393,89016.0,89015.0,0.002]
[1765728653549,0.01223393,89016.0,89015.0,0.001]
[1765728653954,0.01223393,89016.0,89015.0,0.002]
[1765728654478,0.01223393,89016.0,89015.0,0.001]
[1765728654632,0.01223393,89016.0,89015.0,0.002]
[1765728655739,0.001,89016.0,89015.0,0.002]
[1765728659277,0.001,89016.0,89015.0,0.03572455]
[1765728662714,0.2256787,89016.0,89015.0,0.03572455]
[1765728663472,0.2877187,89016.0,89015.0,0.002]
[1765728663791,0.28933157,89016.0,89015.0,0.002]
[1765728663947,0.25348157,89016.0,89015.0,0.002]
[1765728664352,0.22729157,89016.0,89015.0,0.002]
[1765728668664,0.001,89016.0,89015.0,0.002]
[1765728676685,0.001,89016.0,89015.0,0.22668123]
[1765728678173,0.001,89016.0,89015.0,1.34991491]
[1765728678346,0.01123204,89031.0,89027.0,0.01123254]
[1765728678965,0.01123204,89031.0,89027.0,0.26960149]
[1765728679590,0.01323204,89031.0,89027.0,0.27060149]
[1765728679798,0.01623204,89031.0,89027.0,0.04695277]
[1765728680000,0.01623204,89031.0,89027.0,0.27160156]
[1765728680241,0.005,89031.0,89029.0,0.2246439]
[1765728680556,0.005,89031.0,89030.0,0.112]
[1765728680889,0.005,89031.0,89030.0,0.01123141]
[1765728681125,0.005,89031.0,89030.0,0.12323141]
[1765728681553,0.003,89031.0,89030.0,0.12323141]
[1765728681773,0.004,89031.0,89030.0,0.12323141]
[1765728681995,0.001,89031.0,89030.0,0.12323141]
[1765728682434,0.00105098,89032.0,89031.0,0.33664085]
[1765728683679,0.00305098,89032.0,89031.0,0.33764085]
[1765728684096,0.00305098,89032.0,89031.0,1.33764085]
[1765728685087,0.00305098,89032.0,89031.0,1.62834085]
[1765728685288,0.00205098,89032.0,89031.0,1.63034085]
[1765728685830,0.00305098,89032.0,89031.0,1.63334085]
[1765728690651,0.00305098,89032.0,89031.0,1.6670557]
[1765728691793,0.00305098,89032.0,89031.0,1.3238557]
[1765728692207,0.00305098,89032.0,89031.0,1.6670557]
[1765728697266,0.00305098,89032.0,89031.0,0.6670557]
[1765728697480,0.00305098,89032.0,89031.0,1.6670557]
[1765728698338,0.00305098,89032.0,89031.0,0.6670557]
[1765728698555,0.00305098,89032.0,89031.0,1.5550557]
[1765728698768,0.00305098,89032.0,89031.0,1.6670557]
[1765728701371,9.8e-07,89032.0,89031.0,1.6670557]
[1765728701569,0.01122901,89055.0,89031.0,1.6670557]
[1765728701570,0.01122914,89054.0,89051.0,0.2358188]
[1765728701983,0.01122939,89052.0,89047.0,0.23583051]
[1765728702221,0.01122952,89051.0,89047.0,0.23583051]
[1765728702685,0.00048745,89048.0,89047.0,0.23583051]
[1765728704505,0.00148745,89048.0,89047.0,0.23683051]
[1765728705090,0.00148745,89048.0,89047.0,0.23783051]
[1765728706629,0.00148745,89048.0,89047.0,0.002]
[1765728712157,0.00310032,89048.0,89047.0,0.002]
[1765728712367,0.07794032,89048.0,89047.0,0.002]
[1765728712768,0.02082032,89048.0,89047.0,0.002]
[1765728713272,0.02082032,89048.0,89047.0,0.001]
[1765728713894,0.02082032,89048.0,89031.0,0.0112304]
[1765728713895,0.22463076,89035.0,89031.0,0.0112304]
[1765728714096,0.2246358,89033.0,89031.0,0.0112304]
[1765728714456,0.0112333,89021.0,89018.0,0.08045706]
[1765728714668,0.22466977,89020.0,89019.0,0.0337211]
[1765728714873,0.22466977,89020.0,89018.0,8.241e-05]
[1765728716698,0.22466977,89020.0,89019.0,0.001]
[1765728717155,0.22566977,89020.0,89019.0,0.002]
[1765728717361,0.22466977,89020.0,89018.0,8.241e-05]
[1765728717569,0.22466977,89020.0,89018.0,0.00108241]
[1765728717769,0.22466977,89020.0,89018.0,0.00208241]
[1765728717770,0.22566977,89020.0,89018.0,0.00208241]
[1765728717947,0.22466977,89020.0,89018.0,8.241e-05]
[1765728718104,0.22466977,89020.0,89018.0,0.05008241]
[1765728718309,0.22666977,89020.0,89019.0,0.002]
[1765728718882,0.22566977,89020.0,89019.0,0.001]
[1765728719707,0.22466977,89020.0,89018.0,0.05008241]
[1765728720124,0.22466977,89020.0,89018.0,0.05108241]
[1765728720326,0.22566977,89020.0,89018.0,0.05208241]
[1765728726251,0.0318,89019.0,89018.0,0.05208241]
[1765728726477,0.05496,89019.0,89018.0,0.05208241]
[1765728726700,0.33766977,89020.0,89018.0,0.05208241]
[1765728726900,0.22566977,89020.0,89018.0,0.05208241]
[1765728727101,0.22466977,89020.0,89018.0,0.05008241]
[1765728727300,0.001,89019.0,89018.0,0.05108241]
[1765728727485,0.001,89019.0,89018.0,0.05208241]
[1765728727699,0.22466977,89020.0,89018.0,0.05108241]
[1765728727895,0.22566977,89020.0,89018.0,0.05208241]
[1765728728264,0.22466977,89020.0,89018.0,0.05108241]
[1765728728906,0.22466977,89020.0,89018.0,0.05008241]
[1765728729306,0.22466977,89020.0,89018.0,0.05108241]
[1765728729744,0.001,89019.0,89018.0,0.05208241]
[1765728729948,0.22466977,89020.0,89018.0,0.05108241]
[1765728730347,0.22566977,89020.0,89018.0,0.05208241]
[1765728730566,0.22466977,89020.0,89018.0,0.05008241]
[1765728731180,0.001,89019.0,89018.0,0.05208241]
[1765728731334,0.22466977,89020.0,89018.0,0.05108241]
[1765728731537,0.22566977,89020.0,89018.0,0.05208241]
[1765728732145,0.22566977,89020.0,89018.0,0.05108241]
[1765728732571,0.22566977,89020.0,89018.0,0.05208241]
[1765728736212,0.33766977,89020.0,89018.0,0.05208241]
[1765728736415,0.22566977,89020.0,89018.0,0.05208241]
[1765728738538,0.02058511,89019.0,89018.0,0.05208241]
[1765728739469,0.22566977,89020.0,89018.0,0.05208241]
[1765728739633,0.22466977,89020.0,89018.0,0.05008241]
[1765728740155,0.001,89019.0,89018.0,0.05108241]
[1765728740360,0.22466977,89020.0,89018.0,0.05108241]
[1765728740782,0.22566977,89020.0,89018.0,0.05208241]
[1765728740997,0.22466977,89020.0,89018.0,0.05108241]
[1765728741454,0.06061511,89019.0,89018.0,0.05208241]
[1765728741651,0.03745511,89019.0,89018.0,0.05108241]
[1765728741862,0.03745511,89019.0,89018.0,0.05208241]
[1765728742252,0.03745511,89019.0,89018.0,0.05108241]
[1765728742858,0.03745511,89019.0,89018.0,0.05208241]
[1765728743195,0.03745511,89019.0,89018.0,0.05108241]
[1765728743547,0.03845511,89019.0,89018.0,0.05208241]
[1765728744063,0.02258511,89019.0,89018.0,0.05208241]
[1765728749566,0.02258511,89019.0,89018.0,0.05841411]
[1765728749750,0.02258511,89019.0,89018.0,0.05208241]
[1765728752116,0.13458511,89019.0,89018.0,0.05208241]
[1765728753598,0.02258511,89019.0,89018.0,0.05208241]
[1765728763754,0.002,89019.0,89018.0,0.05208241]
[1765728764842,0.05187,89019.0,89018.0,0.05208241]
[1765728765260,0.02189,89019.0,89018.0,0.05208241]
[1765728765580,0.05187,89019.0,89018.0,0.05208241]
[1765728765735,0.02189,89019.0,89018.0,0.05208241]
[1765728766132,0.05187,89019.0,89018.0,0.05208241]
[1765728767146,0.002,89019.0,89018.0,0.05208241]
[1765728767987,0.114,89019.0,89018.0,0.05208241]
[1765728768778,0.002,89019.0,89018.0,0.05208241]
[1765728772930,0.002,89019.0,89018.0,0.27675607]
[1765728774216,0.002,89019.0,89018.0,0.05208241]
[1765728776513,0.22667113,89019.0,89018.0,0.05208241]
[1765728776716,0.27631113,89019.0,89018.0,0.05208241]
[1765728777149,0.22667113,89019.0,89018.0,0.05208241]
[1765728782566,0.33867113,89019.0,89018.0,0.05208241]
[1765728783127,0.22667113,89019.0,89018.0,0.05208241]
[1765728786347,0.002,89019.0,89018.0,0.05208241]
[1765728806836,0.002,89019.0,89018.0,0.17638676]
[1765728806992,0.002,89019.0,89018.0,0.16408241]
[1765728808325,0.001,89019.0,89018.0,0.16308241]
[1765728808710,0.002,89019.0,89018.0,0.16508241]
[1765728809129,0.001,89019.0,89018.0,0.19680351]
[1765728809534,0.01123179,89033.0,89029.0,0.01123229]
[1765728810053,0.01123179,89033.0,89030.0,0.01123216]
[1765728811411,0.01123179,89033.0,89029.0,0.01123229]
[1765728811620,0.01123191,89032.0,89029.0,0.01323229]
[1765728812038,0.01123191,89032.0,89029.0,0.01523229]
[1765728812245,0.01123191,89032.0,89029.0,0.01323229]
[1765728812432,0.01223179,89033.0,89030.0,0.01223216]
[1765728812631,0.01123179,89033.0,89030.0,0.01223216]
[1765728813120,0.001,89032.0,89030.0,0.01123216]
[1765728813300,0.01123179,89033.0,89030.0,0.01123216]
[1765728813502,0.001,89032.0,89030.0,0.01123216]
[1765728813810,0.001,89032.0,89030.0,0.23787338]
[1765728814158,0.001,89032.0,89031.0,0.112]
[1765728814361,0.001,89032.0,89031.0,0.12323166]
[1765728814602,0.001,89033.0,89031.0,0.12323166]
[1765728814603,0.001,89033.0,89032.0,0.33663833]
[1765728814801,0.01147465,89040.0,89037.0,0.01123128]
[1765728814976,0.00024375,89040.0,89038.0,0.22462319]
[1765728815198,0.00024375,89040.0,89038.0,0.258341]
[1765728816424,0.00024375,89040.0,89038.0,0.259341]
[1765728816425,0.00124375,89040.0,89038.0,0.259341]
[1765728816627,0.00224375,89040.0,89038.0,0.259341]
[1765728816810,0.00224375,89040.0,89038.0,0.22562319]
[1765728817349,0.00224375,89040.0,89039.0,0.03371781]
[1765728818210,0.00024375,89040.0,89039.0,0.03371781]
[1765728818432,0.00124375,89040.0,89039.0,0.03471781]
[1765728818783,0.00224375,89040.0,89039.0,0.03471781]
[1765728821888,0.02282886,89040.0,89039.0,0.03471781]
[1765728822499,0.02282886,89040.0,89039.0,0.001]
[1765728824573,0.02282886,89040.0,89039.0,0.03471781]
[1765728824925,0.00224375,89040.0,89039.0,0.03471781]
[1765728826993,0.02282886,89040.0,89039.0,0.03471781]
[1765728828865,0.02282886,89040.0,89039.0,0.001]
[1765728829067,0.00224375,89040.0,89039.0,0.001]
[1765728833716,0.02282886,89040.0,89039.0,0.001]
[1765728838453,0.00224375,89040.0,89039.0,0.001]
[1765728841982,0.22686189,89040.0,89039.0,0.001]
[1765728842189,0.00224375,89040.0,89039.0,0.001]
[1765728843953,0.02282886,89040.0,89039.0,0.001]
[1765728845161,0.00224375,89040.0,89039.0,0.001]
[1765728849097,0.02282886,89040.0,89039.0,0.001]
[1765728862590,0.00224375,89040.0,89039.0,0.113]
[1765728862793,0.00224375,89040.0,89039.0,0.14671781]
[1765728863214,0.00224375,89040.0,89039.0,0.03471781]
[1765728870024,0.00224375,89040.0,89039.0,0.001]
[1765728880131,0.00224375,89040.0,89039.0,0.22562067]
[1765728880333,0.00224375,89040.0,89039.0,0.25933552]
[1765728882169,0.00224375,89040.0,89039.0,0.03471485]
[1765728885612,0.00224375,89040.0,89039.0,0.14671485]
[1765728886319,0.00124375,89040.0,89039.0,0.14671485]
[1765728886532,0.00224375,89040.0,89039.0,0.16173198]
[1765728886736,0.00124375,89040.0,89039.0,0.16073198]
[1765728887172,0.00224375,89040.0,89039.0,0.16473198]
[1765728889544,0.00224375,89040.0,89039.0,1.16473198]
[1765728889745,0.00224375,89040.0,89039.0,0.70681485]
[1765728889947,0.00224375,89040.0,89039.0,0.65831485]
[1765728890542,0.00224375,89040.0,89039.0,1.15271485]
[1765728890925,0.00224375,89040.0,89039.0,0.63941485]
[1765728891562,0.00224375,89040.0,89039.0,1.15271485]
[1765728892700,3.75e-06,89040.0,89039.0,1.04071485]
[1765728892913,3.75e-06,89040.0,89039.0,1.15271485]
[1765728910080,0.01122914,89054.0,89051.0,0.01122952]
[1765728910639,0.01122901,89055.0,89051.0,0.01122952]
[1765728910860,0.03181399,89056.0,89053.0,0.01122926]
[1765728911079,0.01122901,89055.0,89051.0,0.01122952]
[1765728911286,0.01122939,89052.0,89051.0,0.001]
[1765728911489,0.02832226,89052.0,89051.0,0.002]
[1765728911692,0.01123078,89041.0,89038.0,0.05]
[1765728911867,0.01123166,89034.0,89031.0,0.2907]
[1765728912571,0.01123166,89034.0,89032.0,0.03371754]
[1765728912907,0.23585699,89037.0,89032.0,0.2583556]
[1765728913108,0.01123128,89037.0,89032.0,0.2583556]
[1765728913471,0.01123128,89037.0,89034.0,0.01123166]
[1765728913671,0.01123128,89037.0,89035.0,0.05]
[1765728914053,0.2358517,89039.0,89036.0,0.03371754]
[1765728914458,0.001,89037.0,89036.0,0.03371754]
[1765728915074,0.2358517,89039.0,89036.0,0.03371754]
[1765728915295,0.2368517,89039.0,89036.0,0.03571754]
[1765728915499,0.001,89037.0,89036.0,0.03571754]
[1765728915698,0.01123115,89038.0,89036.0,0.03571754]
[1765728916074,0.001,89037.0,89036.0,0.03871754]
[1765728916495,0.001,89037.0,89036.0,0.03671754]
[1765728916866,0.001,89037.0,89036.0,0.03871754]
[1765728917315,0.001,89037.0,89036.0,0.03671754]
[1765728917688,0.002,89037.0,89036.0,0.03871754]
[1765728919016,0.002,89037.0,89036.0,0.26334578]
[1765728920631,0.002,89037.0,89036.0,0.03871754]
[1765728925531,0.22662571,89037.0,89036.0,0.03871754]
[1765728927171,0.26728571,89037.0,89036.0,0.005]
[1765728929171,0.37928571,89037.0,89036.0,0.005]
[1765728929344,0.41301193,89037.0,89036.0,0.005]
[1765728929502,0.22466356,89022.0,89011.0,0.00135586]
[1765728930099,0.22466356,89022.0,89011.0,0.01259042]
[1765728930312,0.22466356,89022.0,89012.0,0.01123444]
[1765728930491,0.22466356,89022.0,89013.0,0.22468502]
[1765728930691,0.22466356,89022.0,89021.0,0.13208241]
[1765728930892,0.22566356,89022.0,89021.0,0.13508241]
[1765728931379,0.22666356,89022.0,89021.0,0.13708241]
[1765728932117,0.26812356,89022.0,89021.0,0.13708241]
[1765728936419,0.22666356,89022.0,89021.0,0.13708241]
[1765728938223,0.002,89022.0,89021.0,0.13708241]
[1765728940806,0.002,89022.0,89021.0,0.24908241]
[1765728942043,0.002,89022.0,89021.0,0.53978241]
[1765728960418,0.01123052,89043.0,89039.0,0.23585106]
[1765728960821,0.03181563,89043.0,89039.0,0.23585106]
[1765728961186,0.01123052,89043.0,89039.0,0.23585106]
[1765728961624,0.01123052,89043.0,89040.0,0.0112309]
[1765728962260,0.01223052,89043.0,89040.0,0.0112309]
[1765728962464,0.001,89043.0,89040.0,0.23584667]
[1765728962667,0.0112304,89044.0,89040.0,0.23584667]
[1765728963006,0.001,89043.0,89040.0,0.23684667]
[1765728963204,0.002,89043.0,89040.0,0.23684667]
[1765728963405,0.002,89043.0,89041.0,0.22461341]
[1765728963653,0.0112304,89044.0,89040.0,0.0112309]
[1765728964061,0.23845318,89044.0,89040.0,0.0112309]
[1765728964482,0.00261287,89044.0,89041.0,0.01123078]
[1765728964647,0.001,89044.0,89043.0,0.22461058]
[1765728964843,0.001,89044.0,89041.0,0.2358464]
[1765728965046,0.002,89044.0,89042.0,0.22461103]
[1765728965472,0.001,89044.0,89042.0,0.22461103]
[1765728965649,0.002,89044.0,89042.0,0.22461103]
[1765728965846,0.001,89044.0,89042.0,0.22461103]
[1765728966253,0.00024371,89048.0,89042.0,0.22461103]
[1765728966254,0.00024371,89048.0,89047.0,0.22460049]
[1765728966455,0.00024371,89048.0,89047.0,0.51530049]
[1765728966664,0.00024371,89048.0,89047.0,0.62730049]
[1765728968398,0.00124371,89048.0,89047.0,0.62830049]
[1765728968539,0.00024371,89048.0,89047.0,0.62730049]
[1765728968947,0.00024371,89048.0,89047.0,0.62930049]
[1765728968948,0.00124371,89048.0,89047.0,0.62930049]
[1765728969407,0.00124371,89048.0,89047.0,0.63130049]
[1765728981878,0.00124371,89048.0,89047.0,0.51930049]
[1765728982940,0.00124371,89048.0,89047.0,0.63130049]
[1765728985533,0.01122725,89069.0,89066.0,0.01122762]
[1765728986597,0.0116138,89069.0,89066.0,0.01122762]
[1765728987016,0.0112275,89067.0,89066.0,0.001]
[1765728987418,0.03181261,89067.0,89066.0,0.001]
[1765728987673,0.03181261,89067.0,89066.0,0.002]
[1765728987833,0.03181261,89067.0,89066.0,0.001]
[1765728988229,0.01122775,89065.0,89061.0,0.23579238]
[1765728988460,0.03181286,89065.0,89061.0,0.23579238]
[1765728988659,0.011228,89063.0,89058.0,0.12322863]
[1765728988838,0.22456476,89062.0,89058.0,0.12322863]
[1765728989830,0.01122825,89061.0,89058.0,0.12322863]
[1765728990232,0.2245677,89060.0,89058.0,0.112]
[1765728990821,0.02058511,89059.0,89058.0,0.001]
[1765728991025,0.23581412,89054.0,89051.0,0.2907]
[1765728991809,0.22458769,89053.0,89051.0,0.2907]
[1765728992177,0.23581695,89053.0,89049.0,0.01122977]
[1765728992571,0.01122952,89051.0,89048.0,0.2907]
[1765728992774,0.01122952,89051.0,89043.0,0.22460981]
[1765728993013,0.01122964,89050.0,89046.0,0.30193015]
[1765728993213,0.01122989,89048.0,89044.0,0.0112304]
[1765728993868,0.01122964,89050.0,89046.0,0.01123015]
[1765728994133,0.2358229,89050.0,89046.0,0.01123015]
[1765728994275,0.2358229,89050.0,89049.0,0.002]
[1765728994475,0.01122964,89050.0,89049.0,0.002]
[1765728994697,0.001,89048.0,89047.0,0.01123002]
[1765728995108,0.001,89048.0,89046.0,0.01323015]
[1765728995328,0.22559848,89048.0,89046.0,0.002]
[1765728995663,0.01123002,89047.0,89044.0,0.0142304]
[1765728995803,0.01123002,89047.0,89044.0,0.0112304]
[1765728996235,0.01122977,89049.0,89046.0,0.002]
[1765728996433,0.01122989,89048.0,89045.0,0.01123027]
[1765728996865,0.001,89047.0,89045.0,0.01123027]
[1765728997082,0.01122989,89048.0,89045.0,0.06123027]
[1765728997309,0.23582989,89048.0,89046.0,0.002]
[1765728997514,0.23582989,89048.0,89046.0,0.004]
[1765728997720,0.23582989,89048.0,89046.0,0.002]
[1765728998294,0.23582989,89048.0,89045.0,0.05]
[1765728998653,0.22460301,89046.0,89045.0,0.052]
[1765728999000,0.22460301,89046.0,89045.0,0.055]
[1765728999471,0.22460301,89046.0,89045.0,0.052]
[1765728999905,0.22460301,89046.0,89045.0,0.055]
[1765729000103,0.22460301,89046.0,89045.0,0.05]
[1765729000305,0.22560301,89046.0,89045.0,0.053]
[1765729000522,0.22560301,89046.0,89045.0,0.055]
[1765729000920,0.22560301,89046.0,89045.0,0.053]
[1765729001328,0.22660301,89046.0,89045.0,0.055]
[1765729004818,0.002,89046.0,89045.0,0.055]
[1765729005416,0.22660301,89046.0,89045.0,0.055]
[1765729008217,0.002,89046.0,89045.0,0.055]
[1765729023114,0.002,89046.0,89045.0,0.167]
[1765729023573,0.002,89046.0,89045.0,0.055]
[1765729027597,0.01122914,89054.0,89050.0,0.14122964]
[1765729028022,0.00024369,89056.0,89053.0,0.23581461]
[1765729028565,0.01147257,89056.0,89053.0,0.01122926]
[1765729028776,0.01147257,89056.0,89052.0,0.12322939]
[1765729028777,0.23605229,89056.0,89052.0,0.12322939]
[1765729028975,0.001,89054.0,89052.0,0.01122939]
[1765729029207,0.23605229,89056.0,89052.0,0.01122939]
[1765729029495,0.01147257,89056.0,89053.0,0.01122926]
[1765729029703,0.03205768,89056.0,89053.0,0.01122926]
[1765729030106,0.0208288,89056.0,89053.0,0.01122926]
[1765729030307,0.0208288,89056.0,89053.0,0.23581274]
[1765729030502,0.00024369,89056.0,89053.0,0.23581274]
[1765729030702,0.00124369,89056.0,89053.0,0.23681274]
[1765729031065,0.00124369,89056.0,89053.0,0.23781274]